[Event "Danish Skakligaen 2024-25"]
[Site "Denmark"]
[Date "2024.11.03"]
[Round "2.8"]
[White "Wahlgreen, Noah Krug"]
[Black "Rendboe, John Filip"]
[Result "1-0"]
[ECO "B32"]
[WhiteElo "2090"]
[BlackElo "2145"]
[Annotator "RC"]
[PlyCount "73"]
[EventDate "2024.11.02"]
[EventType "team-tourn"]
[EventCountry "DEN"]
[SourceTitle "playchess.com"]
[Source "ChessBase"]
[SourceQuality "1"]
[TimeControl "40/5400+30:1800+30"]

1. e4 {[%emt 0:02:51]} c5 {[%emt 0:00:21]} 2. Nf3 {[%emt 0:00:08]} Nc6 {[%emt 0:00:05]} 3. d4 {[%emt 0:00:59]} cxd4 {[%emt 0:00:08]} 4. Nxd4 {[%emt 0:00:05]} e5 {[%emt 0:00:29]} 5. Nb5 {[%emt 0:00:18]} d6 {[%emt 0:00:54]} 6. N1c3 {[%emt 0:00:55]} a6 {[%emt 0:00:28]} 7. Na3 {[%emt 0:00:11]} Be7 {[%emt 0:03:09]} 8. Nc4 {[%emt 0:01:57]} b5 {[%emt 0:11:05]} 9. Ne3 {[%emt 0:00:07]} Nf6 {[%emt 0:00:06]} 10. Bd3 {[%emt 0:00:22]} O-O {[%emt 0:02:04]} 11. O-O {[%emt 0:00:15]} Be6 {[%emt 0:12:15]} 12. a4 {[%emt 0:07:55]} Nb4 {[%emt 0:03:39]} 13. Be2 {[%emt 0:03:47]} bxa4 {[%emt 0:07:37]} 14. Rxa4 {[%emt 0:01:45]} a5 {[%emt 0:00:16]} 15. Ncd5 {[%emt 0:07:35]} Nbxd5 {[%emt 0:04:13]} 16. exd5 {[%emt 0:01:48]} Bd7 {[%emt 0:00:10]} 17. Ra3 {[%emt 0:06:33]} g6 {[%emt 0:07:15]} 18. Nc4 {[%emt 0:03:16]} Ne4 {[%emt 0:06:01]} 19. Be3 {[%emt 0:02:24]} Rb8 {[%emt 0:10:49]} 20. f3 {[%emt 0:12:17]} Nf6 {[%emt 0:00:45]} 21. Rxa5 {[%emt 0:03:48]} Rxb2 {[%emt 0:01:46]} 22. Ra6 {[%emt 0:00:56]} Rb5 {[%emt 0:06:51]} 23. Nb6 {[%emt 0:01:34]} Rb4 {[%emt 0:00:58]} 24. Qd2 {[%emt 0:02:18]} Rh4 {[%emt 0:03:07]} 25. Rfa1 {[%emt 0:01:17]} Bf5 {[%emt 0:04:45]} 26. g3 {[%emt 0:16:18]} Rd4 {[%emt 0:02:30]} 27. Bxd4 {[%emt 0:00:38]} exd4 {[%emt 0:00:02]} 28. g4 {[%emt 0:05:01]} Bc8 {[%emt 0:01:13]} 29. Nxc8 {[%emt 0:00:11]} Qxc8 {[%emt 0:00:01]} 30. Rc6 {[%emt 0:00:19]} Qb7 {[%emt 0:01:21]} 31. Qxd4 {[%emt 0:00:12]} Rb8 {[%emt 0:00:12]} 32. Kg2 {[%emt 0:02:21]} Bd8 {[%emt 0:00:56]} 33. Rxd6 {[%emt 0:01:24]} Qe7 {[%emt 0:00:20]} 34. Rxd8+ {[%emt 0:00:53]} Rxd8 {[%emt 0:00:01]} 35. Bc4 {[%emt 0:00:33]} Ne8 {[%emt 0:02:22]} 36. Ra7 {[%emt 0:02:12]} Qg5 {[%emt 0:00:23]} 37. Rxf7 {[%emt 0:00:52]} 1-0

[Event "Danish Skakligaen 2024-25"]
[Site "Denmark"]
[Date "2024.11.03"]
[Round "2.8"]
[White "Skou, Niels"]
[Black "Guindy, Esmat Susanne"]
[Result "1-0"]
[ECO "D31"]
[WhiteElo "2054"]
[BlackElo "2020"]
[Annotator "RC"]
[PlyCount "139"]
[EventDate "2024.11.02"]
[EventType "team-tourn"]
[EventCountry "DEN"]
[SourceTitle "playchess.com"]
[Source "ChessBase"]
[SourceQuality "1"]
[TimeControl "40/5400+30:1800+30"]

1. d4 {[%emt 0:00:05]} d5 {[%emt 0:01:18]} 2. c4 {[%emt 0:00:14]} e6 {[%emt 0:00:09]} 3. Nc3 {[%emt 0:00:17]} Be7 {[%emt 0:00:08]} 4. cxd5 {[%emt 0:01:06]} exd5 {[%emt 0:00:07]} 5. Bf4 {[%emt 0:00:17]} c6 {[%emt 0:02:59]} 6. Qc2 {[%emt 0:02:15]} g6 {[%emt 0:03:06]} 7. e3 {[%emt 0:01:59]} Bf5 {[%emt 0:00:07]} 8. Qd1 {[%emt 0:01:15]} Qb6 {[%emt 0:03:11]} 9. Qd2 {[%emt 0:04:12]} Nf6 {[%emt 0:06:38]} 10. Nge2 {[%emt 0:07:15]} Nbd7 {[%emt 0:02:35]} 11. Ng3 {[%emt 0:10:22]} Ne4 {[%emt 0:04:51]} 12. Ngxe4 {[%emt 0:03:35]} dxe4 {[%emt 0:01:03]} 13. Be2 {[%emt 0:03:58]} O-O {[%emt 0:10:44]} 14. O-O {[%emt 0:02:40]} Nf6 {[%emt 0:09:19]} 15. Rfc1 {[%emt 0:06:14]} Rfe8 {[%emt 0:04:40]} 16. h3 {[%emt 0:03:30]} Rad8 {[%emt 0:12:19]} 17. Na4 {[%emt 0:06:34]} Qb4 {[%emt 0:00:20]} 18. Qc2 {[%emt 0:04:25]} Be6 {[%emt 0:02:43]} 19. a3 {[%emt 0:05:30]} Qb3 {[%emt 0:00:39]} 20. Qxb3 {[%emt 0:01:27]} Bxb3 {[%emt 0:00:08]} 21. Nc5 {[%emt 0:00:35]} Bxc5 {[%emt 0:00:24]} 22. Rxc5 {[%emt 0:00:23]} Rd7 {[%emt 0:05:26]} 23. Rc3 {[%emt 0:02:49]} Bd5 {[%emt 0:00:19]} 24. Be5 {[%emt 0:00:28]} Re6 {[%emt 0:02:03]} 25. g4 {[%emt 0:01:24]} g5 {[%emt 0:00:59]} 26. b4 {[%emt 0:00:34]} Ne8 {[%emt 0:00:58]} 27. b5 {[%emt 0:03:24]} f6 {[%emt 0:00:32]} 28. Bg3 {[%emt 0:00:26]} Nd6 {[%emt 0:01:22]} 29. a4 {[%emt 0:01:55]} Kg7 {[%emt 0:01:06]} 30. Rc5 {[%emt 0:02:30]} Nf7 {[%emt 0:05:30]} 31. Rac1 {[%emt 0:04:02]} Nd8 {[%emt 0:00:27]} 32. Bb8 {[%emt 0:01:36]} b6 {[%emt 0:01:13]} 33. R5c3 {[%emt 0:00:59]} Kg6 {[%emt 0:02:11]} 34. Bg3 {[%emt 0:00:21]} Kg7 {[%emt 0:00:16]} 35. Ra1 {[%emt 0:09:34]} Nb7 {[%emt 0:00:52]} 36. Rac1 {[%emt 0:01:33]} c5 {[%emt 0:02:57]} 37. Rd1 {[%emt 0:02:46]} cxd4 {[%emt 0:01:07]} 38. Rxd4 {[%emt 0:00:15]} Nc5 {[%emt 0:01:31]} 39. a5 {[%emt 0:01:52]} Ree7 {[%emt 0:00:38]} 40. a6 {[%emt 0:01:43]} Ne6 {[%emt 0:02:19]} 41. Rd2 {[%emt 0:31:06]} Nc5 {[%emt 0:32:08]} 42. Kf1 {[%emt 0:00:00]} Bf7 {[%emt 0:00:00]} 43. Rxd7 {[%emt 0:00:00]} Rxd7 {[%emt 0:00:00]} 44. Ke1 {[%emt 0:00:00]} Bd5 {[%emt 0:00:00]} 45. Bb8 {[%emt 0:00:00]} Kf7 {[%emt 0:00:00]} 46. Bc4 {[%emt 0:00:00]} Ke6 {[%emt 0:00:00]} 47. Ke2 {[%emt 0:00:00]} Rf7 {[%emt 0:00:00]} 48. Rc2 {[%emt 0:00:00]} Rd7 {[%emt 0:00:00]} 49. Ba2 {[%emt 0:00:00]} Bxa2 {[%emt 0:01:00]} 50. Rxa2 {[%emt 0:00:00]} Kd5 {[%emt 0:00:07]} 51. Rc2 {[%emt 0:00:00]} Rf7 {[%emt 0:02:00]} 52. Kd2 {[%emt 0:00:00]} Nd3 {[%emt 0:03:54]} 53. Bg3 {[%emt 0:03:04]} Nc5 {[%emt 0:02:40]} 54. Kc3 {[%emt 0:00:25]} Rf8 {[%emt 0:00:15]} 55. Kd2 {[%emt 0:02:17]} Rd8 {[%emt 0:01:27]} 56. Ke2 {[%emt 0:00:30]} Ke6 {[%emt 0:00:17]} 57. Rc4 {[%emt 0:00:45]} f5 {[%emt 0:01:04]} 58. Bc7 {[%emt 0:01:11]} Rd7 {[%emt 0:00:24]} 59. Rxc5 {[%emt 0:01:43]} bxc5 {[%emt 0:00:05]} 60. b6 {[%emt 0:00:05]} Rxc7 {[%emt 0:00:34]} 61. b7 {[%emt 0:00:06]} fxg4 {[%emt 0:00:35]} 62. b8=Q {[%emt 0:00:16]} Kd7 {[%emt 0:00:42]} 63. hxg4 {[%emt 0:00:16]} c4 {[%emt 0:00:04]} 64. Qb5+ {[%emt 0:00:23]} Kd6 {[%emt 0:00:33]} 65. Kd2 {[%emt 0:00:22]} c3+ {[%emt 0:00:06]} 66. Kc2 {[%emt 0:00:08]} h6 {[%emt 0:00:08]} 67. Qf5 {[%emt 0:00:24]} Rc6 {[%emt 0:00:41]} 68. Qxe4 {[%emt 0:00:22]} Kc5 {[%emt 0:00:10]} 69. Kxc3 {[%emt 0:00:38]} Kb6+ {[%emt 0:00:11]} 70. Kb4 {[%emt 0:00:33]} 1-0

[Event "Danish Skakligaen 2024-25"]
[Site "Denmark"]
[Date "2024.11.03"]
[Round "2.8"]
[White "Noer, Martin Stampe"]
[Black "Pedersen, Peer Ole"]
[Result "0-1"]
[ECO "D00"]
[WhiteElo "1902"]
[BlackElo "2020"]
[Annotator "RC"]
[PlyCount "79"]
[EventDate "2024.11.02"]
[EventType "team-tourn"]
[EventCountry "DEN"]
[SourceTitle "playchess.com"]
[Source "ChessBase"]
[SourceQuality "1"]
[TimeControl "40/5400+30:1800+30"]

1. d4 {[%emt 0:00:04]} d5 {[%emt 0:00:11]} 2. Bf4 {[%emt 0:00:21]} c5 {[%emt 0:02:58]} 3. e3 {[%emt 0:02:49]} Nc6 {[%emt 0:03:29]} 4. c3 {[%emt 0:06:44]} Nf6 {[%emt 0:09:08]} 5. Nd2 {[%emt 0:04:18]} Bf5 {[%emt 0:08:10]} 6. Ngf3 {[%emt 0:02:23]} c4 {[%emt 0:08:44]} 7. Nh4 {[%emt 0:04:32]} Bg4 {[%emt 0:07:09]} 8. Be2 {[%emt 0:02:49]} Be6 {[%emt 0:03:38]} 9. O-O {[%emt 0:06:33]} h6 {[%emt 0:00:51]} 10. Bg3 {[%emt 0:02:11]} Ne4 {[%emt 0:09:40]} 11. f4 {[%emt 0:10:03]} g5 {[%emt 0:10:02]} 12. fxg5 {[%emt 0:09:11]} Nxg3 {[%emt 0:02:10]} 13. hxg3 {[%emt 0:00:49]} hxg5 {[%emt 0:01:27]} 14. Nf5 {[%emt 0:04:27]} Bxf5 {[%emt 0:01:28]} 15. Rxf5 {[%emt 0:00:12]} e6 {[%emt 0:00:17]} 16. Rf3 {[%emt 0:10:09]} g4 {[%emt 0:08:16]} 17. Rf4 {[%emt 0:01:23]} Bh6 {[%emt 0:01:29]} 18. Bxg4 {[%emt 0:01:20]} Bxf4 {[%emt 0:00:16]} 19. exf4 {[%emt 0:00:40]} Qf6 {[%emt 0:02:26]} 20. Nf3 {[%emt 0:09:23]} Rg8 {[%emt 0:02:36]} 21. Ng5 {[%emt 0:06:12]} Rxg5 {[%emt 0:01:16]} 22. fxg5 {[%emt 0:00:10]} Qxg5 {[%emt 0:00:01]} 23. Qe2 {[%emt 0:01:42]} O-O-O {[%emt 0:00:21]} 24. Rf1 {[%emt 0:02:22]} Rg8 {[%emt 0:03:14]} 25. Rf4 {[%emt 0:04:25]} Nd8 {[%emt 0:02:19]} 26. b3 {[%emt 0:02:05]} cxb3 {[%emt 0:00:53]} 27. axb3 {[%emt 0:00:24]} f5 {[%emt 0:00:14]} 28. Bh3 {[%emt 0:00:46]} Qxg3 {[%emt 0:00:11]} 29. Rf3 {[%emt 0:00:08]} Qh4 {[%emt 0:00:49]} 30. Qe5 {[%emt 0:01:19]} Qe4 {[%emt 0:00:31]} 31. Re3 {[%emt 0:02:56]} Qxe5 {[%emt 0:05:04]} 32. Rxe5 {[%emt 0:00:03]} Kd7 {[%emt 0:00:22]} 33. c4 {[%emt 0:01:01]} Nc6 {[%emt 0:03:15]} 34. Re3 {[%emt 0:01:08]} dxc4 {[%emt 0:01:52]} 35. bxc4 {[%emt 0:00:13]} Kd6 {[%emt 0:00:25]} 36. Rd3 {[%emt 0:01:54]} a5 {[%emt 0:00:28]} 37. Kf2 {[%emt 0:00:40]} Rg5 {[%emt 0:00:37]} 38. Ke3 {[%emt 0:01:06]} Nb4 {[%emt 0:00:44]} 39. Rd2 {[%emt 0:00:30]} Rg3+ {[%emt 0:00:11]} 40. Ke2 {[%emt 0:00:00]} 0-1